Workbook

Sheet Aggregation
E2: nHiFreqObs In Lo Freq: | F2: 3
F3: …3 = quarterly!
E5: nObs in Hi Freq: | F5: 48
B7: Random Means
B8: =_xll.apaReturns.Random(5)/100 -> 0.005014921427 | C8: 0.006318383217 | D8: 0.002055214643 | E8: -0.005346930027 | F8: 0.001184455156
B10: Random Covars
B11: =_xll.apaCovars.FromVolaCorrs(_xll.apaVolatilities.Random(5),_xll.apaCorrels.Random(5))/100 -> 0.00239092051 | C11: -0.0003183492349 | D11: -0.0006050024503 | E11: 0.002161138168 | F11: -0.00111433238
B12: -0.0003183492349 | C12: 0.006427977171 | D12: 0.002148546039 | E12: 0.0005651419663 | F12: -0.001806260359
B13: -0.0006050024503 | C13: 0.002148546039 | D13: 0.00126933123 | E13: -0.0005496679953 | F13: -0.0003718487624
B14: 0.002161138168 | C14: 0.0005651419663 | D14: -0.0005496679953 | E14: 0.008129003 | F14: 0.001974103247
B15: -0.00111433238 | C15: -0.001806260359 | D15: -0.0003718487624 | E15: 0.001974103247 | F15: 0.003321684367
B17: Simulated Hi Freq Data | I17: Arithmetic Temporal Aggregation: Lo Freq Data | P17: Arithmetic Temporal Aggregation: Lo Freq Data w StartIndex = 2 | W17: Arithmetic Temporal Aggregation: Lo Freq Data w StartIndex = 2 and nObsHiFreq = 45
B18: DataSeries1 | C18: DataSeries2 | D18: DataSeries3 | E18: DataSeries4 | F18: DataSeries5 | H18: Check | I18: DataSeries1 | J18: DataSeries2 | K18: DataSeries3 | L18: DataSeries4 | M18: DataSeries5 | O18: Check | P18: DataSeries1 | Q18: DataSeries2 | R18: DataSeries3 | S18: DataSeries4 | T18: DataSeries5 | V18: Check | W18: DataSeries1 | X18: DataSeries2 | Y18: DataSeries3 | Z18: DataSeries4 | AA18: DataSeries5
B19: =_xll.apaNsim.Multivariate(F5,B8:F8,B11:F15) -> 0.07906093912 | C19: -0.01932849794 | D19: -0.01476164071 | E19: 0.09927968355 | F19: -0.02403447655 | H19: =SUM(B19:B21) -> 0.1022684228 | I19: =_xll.apaTemporal.Aggregation(B19:F65,F2,1) -> 0.1022684228 | J19: 0.2599414818 | K19: 0.1142038449 | L19: 0.05994801578 | M19: -0.06594422556 | O19: =SUM(B19:B20) -> 0.1031585639 | P19: =_xll.apaTemporal.Aggregation(B19:F66,F2,2) -> 0.1031585639 | Q19: 0.1398347589 | R19: 0.05232808629 | S19: 0.05783634169 | T19: -0.09009867153 | V19: =SUM(B19:B20) -> 0.1031585639 | W19: =_xll.apaTemporal.Aggregation(B19:F63,F2,2) -> 0.1031585639 | X19: 0.1398347589 | Y19: 0.05232808629 | Z19: 0.05783634169 | AA19: -0.09009867153
B20: 0.02409762478 | C20: 0.1591632568 | D20: 0.067089727 | E20: -0.04144334186 | F20: -0.06606419498 | H20: =SUM(B22:B24) -> 0.196075482 | I20: 0.196075482 | J20: -0.06113935859 | K20: -0.1123030968 | L20: 0.330568904 | M20: 0.01551672568 | O20: =SUM(B21:B23) -> 0.1180176105 | P20: 0.1180176105 | Q20: 0.045972656 | R20: -0.01057045075 | S20: 0.2163640689 | T20: 0.07070581115 | V20: =SUM(B21:B23) -> 0.1180176105 | W20: 0.1180176105 | X20: 0.045972656 | Y20: -0.01057045075 | Z20: 0.2163640689 | AA20: 0.07070581115
B21: -0.0008901410883 | C21: 0.1201067229 | D21: 0.06187575866 | E21: 0.002111674091 | F21: 0.02415444597 | H21: =SUM(B25:B27) -> -0.04392114184 | I21: -0.04392114184 | J21: -0.0867455383 | K21: 0.04158504875 | L21: -0.2060541732 | M21: 0.07807242692 | O21: =SUM(B24:B26) -> 0.02922317817 | P21: 0.02922317817 | Q21: -0.0340680473 | R21: -0.00222425954 | S21: -0.02520520692 | T21: 0.04975573423 | V21: =SUM(B24:B26) -> 0.02922317817 | W21: 0.02922317817 | X21: -0.0340680473 | Y21: -0.00222425954 | Z21: -0.02520520692 | AA21: 0.04975573423
B22: 0.03820553521 | C22: -0.08776550904 | D22: -0.03560554204 | E22: 0.03847055427 | F22: 0.02218826589 | H22: =SUM(B28:B30) -> 0.03492867982 | I22: 0.03492867982 | J22: 0.06460261556 | K22: 0.02685481501 | L22: -0.1879759422 | M22: -0.1323072338 | O22: =SUM(B27:B29) -> 0.01534146586 | P22: 0.01534146586 | Q22: -0.004578769041 | R22: -0.01069126913 | S22: -0.2276257454 | T22: -0.1126791236 | V22: =SUM(B27:B29) -> 0.01534146586 | W22: 0.01534146586 | X22: -0.004578769041 | Y22: -0.01069126913 | Z22: -0.2276257454 | AA22: -0.1126791236
B23: 0.08070221638 | C23: 0.01363144212 | D23: -0.03684066737 | E23: 0.1757818406 | F23: 0.02436309929 | H23: =SUM(B31:B33) -> 0.1342027534 | I23: 0.1342027534 | J23: 0.08068415982 | K23: 0.03831000538 | L23: -0.130457238 | M23: -0.195586049 | O23: =SUM(B30:B32) -> 0.1177955909 | P23: 0.1177955909 | Q23: 0.147603556 | R23: 0.1001258816 | S23: -0.221588746 | T23: -0.2394155335 | V23: =SUM(B30:B32) -> 0.1177955909 | W23: 0.1177955909 | X23: 0.147603556 | Y23: 0.1001258816 | Z23: -0.221588746 | AA23: -0.2394155335
B24: 0.07716773039 | C24: 0.01299470833 | D24: -0.0398568874 | E24: 0.1163165091 | F24: -0.0310346395 | H24: =SUM(B34:B36) -> -0.005714688519 | I24: -0.005714688519 | J24: -0.1060321183 | K24: 0.03474580288 | L24: -0.1060379419 | M24: 0.07298903983 | O24: =SUM(B33:B35) -> 0.06157269374 | P24: 0.06157269374 | Q24: -0.04131672786 | R24: -0.003557183244 | S24: 0.159675459 | T24: 0.09819515516 | V24: =SUM(B33:B35) -> 0.06157269374 | W24: 0.06157269374 | X24: -0.04131672786 | Y24: -0.003557183244 | Z24: 0.159675459 | AA24: 0.09819515516
B25: -0.05793795626 | C25: -0.1195608461 | D25: -0.009956432958 | E25: -0.1488382702 | F25: 0.06463075965 | H25: … | I25: 0.05601215248 | J25: -0.2923800474 | K25: -0.07401065266 | L25: -0.1512152223 | M25: 0.004584498789 | O25: =SUM(B36:B38) -> -0.007885071268 | P25: -0.007885071268 | Q25: -0.2216304422 | R25: -0.0009612020228 | S25: -0.478740434 | T25: -0.09910823257 | V25: =SUM(B36:B38) -> -0.007885071268 | W25: -0.007885071268 | X25: -0.2216304422 | Y25: -0.0009612020228 | Z25: -0.478740434 | AA25: -0.09910823257
B26: 0.009993404038 | C26: 0.07249809049 | D26: 0.04758906082 | E26: 0.00731655421 | F26: 0.01615961408 | I26: 0.00980725665 | J26: 0.06121207295 | K26: -0.02600343359 | L26: -0.1994891996 | M26: -0.1232717074 | O26: =SUM(B39:B41) -> 0.05835347787 | P26: 0.05835347787 | Q26: -0.1298343746 | R26: -0.07853119751 | S26: 0.06110718736 | T26: 0.05555880532 | V26: =SUM(B39:B41) -> 0.05835347787 | W26: 0.05835347787 | X26: -0.1298343746 | Y26: -0.07853119751 | Z26: 0.06110718736 | AA26: 0.05555880532
B27: 0.00402341038 | C27: -0.03968278266 | D27: 0.003952420891 | E27: -0.06453245716 | F27: -0.002717946808 | I27: -0.05981220668 | J27: 0.03596294578 | K27: 0.06450668366 | L27: -0.2007808281 | M27: -0.01030591682 | O27: =SUM(B42:B44) -> -0.05343920257 | P27: -0.05343920257 | Q27: 0.01495957211 | R27: 0.03099260748 | S27: -0.3162886205 | T27: -0.08660637192 | V27: =SUM(B42:B44) -> -0.05343920257 | W27: -0.05343920257 | X27: 0.01495957211 | Y27: 0.03099260748 | Z27: -0.3162886205 | AA27: -0.08660637192
B28: 0.01058475756 | C28: -0.01793039274 | D28: -0.01709176915 | E28: -0.008033834689 | F28: -0.02060053592 | I28: 0.04094561544 | J28: 0.1574594412 | K28: -0.0148970795 | L28: 0.2813245327 | M28: 0.1033930698 | O28: =SUM(B45:B47) -> 0.01600217875 | P28: 0.01600217875 | Q28: 0.2152553252 | R28: 0.04365765872 | S28: 0.1147659799 | T28: 0.01815713054 | V28: =SUM(B45:B47) -> 0.01600217875 | W28: 0.01600217875 | X28: 0.2152553252 | Y28: 0.04365765872 | Z28: 0.1147659799 | AA28: 0.01815713054
B29: 0.0007332979295 | C29: 0.05303440636 | D29: 0.002448079129 | E29: -0.1550594536 | F29: -0.08936064088 | I29: -0.006570666859 | J29: 0.04147193954 | K29: -0.006444368387 | L29: -0.07707669541 | M29: 0.01083912278 | O29: =SUM(B48:B50) -> -0.0660396875 | P29: -0.0660396875 | Q29: 0.02889510018 | R29: -0.005297362415 | S29: 0.06288587656 | T29: 0.1096740841 | V29: =SUM(B48:B50) -> -0.0660396875 | W29: -0.0660396875 | X29: 0.02889510018 | Y29: -0.005297362415 | Z29: 0.06288587656 | AA29: 0.1096740841
B30: 0.02361062434 | C30: 0.02949860193 | D30: 0.04149850503 | E30: -0.02488265397 | F30: -0.02234605703 | I30: 0.02867377281 | J30: -0.257233057 | K30: -0.08130586246 | L30: 0.1353515134 | M30: 0.165571216 | O30: =SUM(B51:B53) -> 0.1098499943 | P30: 0.1098499943 | Q30: -0.1171831927 | R30: -0.06884802008 | S30: 0.1054500828 | T30: 0.01735378238 | V30: =SUM(B51:B53) -> 0.1098499943 | W30: 0.1098499943 | X30: -0.1171831927 | Y30: -0.06884802008 | Z30: 0.1054500828 | AA30: 0.01735378238
B31: 0.04451667932 | C31: -0.006709817801 | D31: 0.01886597947 | E31: -0.1232785464 | F31: -0.09604803953 | I31: 0.0730879065 | J31: -0.1673864005 | K31: -0.08273083293 | L31: 0.1284309321 | M31: 0.1144050375 | O31: =SUM(B54:B56) -> 0.02960144487 | P31: 0.02960144487 | Q31: -0.2968426064 | R31: -0.1214508024 | S31: 0.06150392181 | T31: 0.2195216035 | V31: =SUM(B54:B56) -> 0.02960144487 | W31: 0.02960144487 | X31: -0.2968426064 | Y31: -0.1214508024 | Z31: 0.06150392181 | AA31: 0.2195216035
B32: 0.04966828724 | C32: 0.1248147719 | D32: 0.03976139709 | E32: -0.07342754565 | F32: -0.1210214369 | I32: 0.02976074468 | J32: 0.1905916802 | K32: 0.01533941914 | L32: 0.03664314657 | M32: -0.04973695671 | O32: =SUM(B57:B59) -> -0.002582618272 | P32: -0.002582618272 | Q32: 0.1646702701 | R32: 0.03029799962 | S32: -0.0001382234563 | T32: -0.04679975617 | V32: =SUM(B57:B59) -> -0.002582618272 | W32: -0.002582618272 | X32: 0.1646702701 | Y32: 0.03029799962 | Z32: -0.0001382234563 | AA32: -0.04679975617
B33: 0.0400177868 | C33: -0.03742079425 | D33: -0.02031737118 | E33: 0.06624885401 | F33: 0.02148342745 | I33: 0.02998947085 | J33: -0.227472457 | K33: -0.1346392418 | L33: -0.1018660155 | M33: 0.02499564071 | O33: =SUM(B60:B62) -> 0.11798572 | P33: 0.11798572 | Q33: -0.1401164032 | R33: -0.08905573295 | S33: 0.170429034 | T33: 0.0495916575 | V33: =SUM(B60:B62) -> 0.11798572 | W33: 0.11798572 | X33: -0.1401164032 | Y33: -0.08905573295 | Z33: 0.170429034 | AA33: 0.0495916575
B34: 0.01636250444 | C34: -0.001126892681 | D34: -0.001911022843 | E34: 0.1536429863 | F34: 0.07009145822 | I34: -0.005218975204 | J34: -0.1069446731 | K34: -0.03916447209 | L34: -0.175091379 | M34: -0.00602758087 | O34: =SUM(B63:B65) -> -0.03244076099 | P34: -0.03244076099 | Q34: -0.1850279886 | R34: -0.1021681741 | S34: -0.3042085663 | T34: -0.006618966797 | V34: =SUM(B63:B63) -> -0.02722178579 | W34: -0.02722178579 | X34: -0.07808331555 | Y34: -0.06300370196 | Z34: -0.1291171873 | AA34: -0.0005913859275
B35: 0.005192402493 | C35: -0.002769040926 | D35: 0.01867121078 | E35: -0.06021638132 | F35: 0.006620269488 | O35: =SUM(B66:B66) -> -0.01377272996 | P35: -0.01377272996 | Q35: -0.009486333292 | R35: -0.00138801118 | S35: -0.1246265768 | T35: -0.0266391629
B36: -0.02726959546 | C36: -0.1021361847 | D36: 0.01798561494 | E36: -0.1994645469 | F36: -0.003722687881
B37: 0.01569233978 | C37: 0.0214449892 | D37: 0.03400473879 | E37: -0.1265076793 | F37: -0.08524218967
B38: 0.003692184408 | C38: -0.1409392466 | D38: -0.05295155575 | E38: -0.1527682078 | F38: -0.01014335502
B39: 0.03662762829 | C39: -0.17288579 | D39: -0.0550638357 | E39: 0.1280606648 | F39: 0.09997004348
B40: -0.02057878617 | C40: -0.03146851127 | D40: -0.01744615011 | E40: -0.0896764286 | F40: -0.01607273592
B41: 0.04230463575 | C41: 0.07451992663 | D41: -0.006021211701 | E41: 0.02272295112 | F41: -0.02833850223
B42: -0.01191859293 | C42: 0.01816065759 | D42: -0.002536071776 | E42: -0.1325357221 | F42: -0.07886046927
B43: -0.06432963002 | C43: 0.07679001697 | D43: 0.04517258386 | E43: -0.01908966095 | F43: 0.04530664747
B44: 0.02280902038 | C44: -0.07999110245 | D44: -0.0116439046 | E44: -0.1646632375 | F44: -0.05305255013
B45: -0.01829159704 | C45: 0.03916403126 | D45: 0.03097800441 | E45: -0.01702792966 | F45: -0.002560014168
B46: 0.01836680193 | C46: 0.03969929754 | D46: -0.01358207973 | E46: 0.09877116134 | F46: 0.03488068026
B47: 0.01592697387 | C47: 0.1363919964 | D47: 0.02626173405 | E47: 0.03302274818 | F47: -0.01416353555
B48: 0.006651839644 | C48: -0.01863185272 | D48: -0.02757673381 | E48: 0.1495306232 | F48: 0.0826759251
B49: 0.009268391239 | C49: 0.05007160812 | D49: 0.017992459 | E49: -0.04111758371 | F49: -0.04320178743
B50: -0.08195991839 | C50: -0.002544655213 | D50: 0.004286912393 | E50: -0.04552716295 | F50: 0.07019994647
B51: 0.06612086029 | C51: -0.006055013369 | D51: -0.02872373978 | E51: 0.009568051255 | F51: -0.01615903626
B52: 0.01341044385 | C52: 0.0245863031 | D52: 0.01854042468 | E52: -0.005276036917 | F52: -0.03164333772
B53: 0.03031869014 | C53: -0.1357144825 | D53: -0.05866470498 | E53: 0.1011580684 | F53: 0.06515615637
B54: -0.01505536118 | C54: -0.1461048777 | D54: -0.04118158216 | E54: 0.0394694819 | F54: 0.1320583974
B55: -0.005420903975 | C55: -0.0957661704 | D55: -0.0184242199 | E55: -0.03558306768 | F55: 0.04271649198
B56: 0.05007771003 | C56: -0.0549715583 | D56: -0.06184500036 | E56: 0.0576175076 | F56: 0.04474671414
B57: 0.02843110045 | C57: -0.01664867178 | D57: -0.002461612668 | E57: 0.1063964922 | F57: 0.02694183142
B58: -0.06987336721 | C58: 0.0842852291 | D58: 0.01971420623 | E58: -0.07050932745 | F58: 0.01455025648
B59: 0.03885964849 | C59: 0.09703371277 | D59: 0.01304540606 | E59: -0.03602538823 | F59: -0.08829184406
B60: 0.0607744634 | C60: 0.009272738313 | D60: -0.01742019314 | E60: 0.1431778622 | F60: 0.02400463087
B61: 0.05514805533 | C61: -0.1294653139 | D61: -0.08985632201 | E61: -0.01321463513 | F61: -0.008886941512
B62: 0.002063201313 | C62: -0.01992382755 | D62: 0.0182207822 | E62: 0.04046580692 | F62: 0.03447396815
B63: -0.02722178579 | C63: -0.07808331555 | D63: -0.06300370196 | E63: -0.1291171873 | F63: -0.0005913859275
B64: -0.02594735905 | C64: 0.01997210334 | D64: 0.02076702075 | E64: -0.0446240486 | F64: 0.02199697567
B65: 0.02072838385 | C65: -0.1269167764 | D65: -0.05993149284 | E65: -0.1304673304 | F65: -0.02802455654
B66: -0.01377272996 | C66: -0.009486333292 | D66: -0.00138801118 | E66: -0.1246265768 | F66: -0.0266391629

Sheet Aggregation Application
B3: TEMPORAL AGGREGATION
B4: MSCI EAFE SMALL CAP (Price USD)
B5: Feb 28, 2005 to Mar 31, 2024
B6: Monthly Data
B7: Source: MSCI
B9: mean | C9: =_xll.apaMoments.All.Population.ShowStdev(C22:C251,TRUE) -> 0.002983059571 | D9: =_xll.apaMoments.All.Population.ShowStdev(D22:D98,TRUE) -> 0.008910437679 | E9: =_xll.apaMoments.All.Population.ShowStdev(E22:E60,TRUE) -> 0.0175924026 | F9: =_xll.apaMoments.All.Population.ShowStdev(F22:F47,TRUE) -> 0.0263886039 | G9: =_xll.apaMoments.All.Population.ShowStdev(G22:G41,TRUE) -> 0.03430518506
B10: stdev | C10: 0.05428823195 | D10: 0.1040521661 | E10: 0.1458002628 | F10: 0.1818628742 | G10: 0.212854937
B11: skew | C11: -1.051310111 | D11: -1.616727453 | E11: -1.293413037 | F11: -1.201135042 | G11: -1.135207569
B12: kurt | C12: 3.459478542 | D12: 6.121023503 | E12: 4.066618002 | F12: 2.301464197 | G12: 2.396022616
B13: max | C13: 0.1391559919 | D13: 0.2183879506 | E13: 0.3166099269 | F13: 0.2844325836 | G13: 0.415565181
B14: min | C14: -0.2721718436 | D14: -0.504425921 | E14: -0.5535682359 | F14: -0.5753163398 | G14: -0.6244586547
B15: ar1 | C15: 0.1748877144 | D15: 0.1295739576 | E15: -0.1240563035 | F15: -0.09545954937 | G15: -0.1719055104
B16: ar2 | C16: -0.02274009038 | D16: -0.0374871821 | E16: -0.04479653255 | F16: -0.3496018501 | G16: -0.4389321951
B17: nPeriods | C17: 1 | D17: 3 | E17: 6 | F17: 9 | G17: 12
B18: sqrt(12) vols | C18: =C10 -> 0.05428823195 | D18: =SQRT(D17)*$C$18 -> 0.094029976 | E18: =SQRT(E17)*$C$18 -> 0.1329784673 | F18: 0.1628646959 | G18: 0.188059952
B20: nObs | C20: =COUNT(C22:C251) -> 230 | D20: =COUNT(D22:D251) -> 77 | E20: 39 | F20: 26 | G20: 20
C21: monthly | D21: quarterly | E21: semi-annually | F21: tri-quarterly | G21: annually
C22: 0.03883810264 | D22: =_xll.apaTemporal.Aggregation($C$22:$C$251,3,1) -> -0.008814696102 | E22: =_xll.apaTemporal.Aggregation($C$22:$C$251,6,1) -> 0.05654689457 | F22: =_xll.apaTemporal.Aggregation($C$22:$C$251,9,1) -> 0.08797127293 | G22: =_xll.apaTemporal.Aggregation($C$22:$C$251,12,1) -> 0.260722438
C23: -0.02095130387 | D23: 0.06536159067 | E23: 0.2041755434 | F23: 0.1306292295 | G23: 0.1144391678
C24: -0.02670149487 | D24: 0.03142437836 | E24: -0.04212193555 | F24: 0.2344340599 | G24: -0.1270181342
C25: -0.002898250806 | D25: 0.172751165 | E25: 0.1565611034 | F25: -0.2048910907 | G25: -0.6244586547
C26: 0.02461107359 | D26: 0.07124888085 | E26: 0.07447039553 | F26: -0.5753163398 | G26: 0.415565181
C27: 0.04364876789 | D27: -0.1133708164 | E27: -0.2014885298 | F27: 0.267467612 | G27: 0.1954789748
C28: 0.02735138916 | D28: 0.06330912742 | E28: -0.07089041881 | F28: 0.1648555863 | G28: -0.1270271957
C29: 0.03787899183 | D29: 0.09325197594 | E29: -0.5535682359 | F29: 0.1295786426 | G29: 0.1273838502
C30: -0.03380600263 | D30: 0.07787295651 | E30: 0.3166099269 | F30: -0.1280479218 | G30: 0.1680406137
C31: 0.03094279985 | D31: -0.003402560982 | E31: 0.09895525412 | F31: -0.0438186571 | G31: -0.05492462407
C32: 0.07601811426 | D32: 0.01387560404 | E32: 0.005764095706 | F32: 0.2292565675 | G32: -0.01284841189
C33: 0.06579025092 | D33: -0.2153641338 | E33: 0.1897148791 | F33: 0.1110072795 | G33: 0.1164009595
C34: -0.01278715047 | D34: 0.0527329215 | E34: 0.004216056124 | F34: -0.05110362892 | G34: 0.2801184833
C35: 0.04343438476 | D35: -0.1236233403 | E35: -0.1312432518 | F35: 0.08631411678 | G35: -0.1913393754
C36: 0.04060164656 | D36: -0.504425921 | E36: -0.04483938323 | F36: -0.01219206107 | G36: 0.0923575213
C37: -0.06160678037 | D37: -0.04914231488 | E37: 0.1722232334 | F37: 0.02560949675 | G37: 0.1238044689
C38: -0.02371720134 | D38: 0.09822197633 | E38: 0.04832985678 | F38: 0.1903370725 | G38: 0.004910722613
C39: -0.02804683469 | D39: 0.2183879506 | E39: 0.1197107569 | F39: 0.01925195617 | G39: -0.1185756827
C40: 0.02653512052 | D40: 0.1039099393 | E40: 0.031978235 | F40: -0.07552651918 | G40: 0.008450602202
C41: 0.001314520702 | D41: -0.004954685219 | E41: -0.08690285907 | F41: 0.04707411979 | G41: 0.03462279668
C42: 0.03545948619 | D42: 0.06590033214 | E42: 0.09013511192 | F42: -0.06485855395
C43: 0.04150966426 | D43: -0.06013623644 | E43: -0.1029835238 | F43: 0.2844325836
C44: 0.03152672019 | D44: 0.11075442 | E44: 0.09486882272 | F44: -0.1837494755
C45: 0.02021559149 | D45: 0.07896045912 | E45: 0.02153213676 | F45: -0.02568504537
C46: 0.01613041216 | D46: 0.06531356033 | E46: 0.1420107307 | F46: -0.1377602546
C47: 0.02781584645 | D47: -0.06109750421 | E47: 0.1381077527 | F47: 0.1808336535
C48: 0.0339266979 | D48: -0.1322639779 | E48: -0.07052945468
C49: 0.005079548607 | D49: 0.00102072613 | E49: -0.1208099207
C50: -0.003815309107 | D50: 0.04558308373 | E50: 0.01821669649
C51: -0.004666800483 | D51: -0.09042246696 | E51: 0.07414082481
C52: -0.05422453507 | D52: 0.074240595 | E52: -0.08929826682
C53: 0.00842399001 | D53: 0.09798263839 | E53: 0.2131027357
C54: 0.0596761491 | D54: 0.05703333417 | E54: 0.09576956078
C55: -0.07535463877 | D55: -0.008703477383 | E55: -0.09085883817
C56: -0.03670880407 | D56: 0.1101100649 | E56: -0.1597574835
C57: -0.1033006909 | D57: 0.009600691987 | E57: 0.04118180077
C58: 0.04080707764 | D58: 0.03321420818 | E58: 0.008096709766
C59: -0.007265682185 | D59: -0.001235973176 | E59: 0.0003538924358
C60: 0.01919152605 | D60: -0.08308186393 | E60: 0.03462279668
C61: 0.01268947807 | D61: -0.003820995143
C62: -0.08850495312 | D62: 0.09013035227
C63: -0.04780786525 | D63: 4.759649595e-06
C64: -0.04064892117 | D64: -0.02620422571
C65: -0.1916051562 | D65: -0.0767792981
C66: -0.2721718436 | D66: 0.09079146274
C67: -0.04641833244 | D67: 0.004077359984
C68: 0.06420031216 | D68: -0.01050110102
C69: -0.0669242946 | D69: 0.03203323778
C70: -0.09801450577 | D70: 0.07685650168
C71: 0.05708049022 | D71: 0.06515422899
C72: 0.1391559919 | D72: 0.04832634182
C73: 0.1289109454 | D73: 0.08978141085
C74: 0.01705544127 | D74: -0.04163886923
C75: 0.07242156394 | D75: -0.02889058545
C76: 0.07636013428 | D76: -0.1216568373
C77: 0.04579386689 | D77: 0.0008469166508
C78: -0.01824406182 | D78: 0.0452834015
C79: -0.0006836862577 | D79: -0.02706670501
C80: 0.006184012506 | D80: 0.04146031218
C81: -0.01045501147 | D81: 0.03268051263
C82: -0.01468452965 | D82: -0.2003968983
C83: 0.06621912434 | D83: 0.1110986315
C84: 0.01436573745 | D84: 0.02443971286
C85: -0.135555162 | D85: 0.1886630228
C86: -0.00651211344 | D86: 0.08078168009
C87: 0.08193103905 | D87: 0.01498788069
C88: -0.03096285419 | D88: 0.002626372029
C89: 0.1046032552 | D89: -0.0934852102
C90: 0.03711401899 | D90: -0.09289063732
C91: -0.03715759438 | D91: -0.06686684614
C92: 0.1087535435 | D92: -0.1328583911
C93: 0.007364509999 | D93: 0.1740401919
C94: 0.02163264086 | D94: -0.01384509221
C95: -0.005031363556 | D95: 0.02194180197
C96: 0.04871228303 | D96: -0.1458569644
C97: -0.0302230332 | D97: 0.1462108568
C98: -0.01915512436 | D98: 0.03462279668
C99: -0.01171934665
C100: -0.08780183573
C101: -0.1132556156
C102: 0.06879347342
C103: -0.05704217473
C104: -0.0208139856
C105: 0.07887688646
C106: 0.05733726502
C107: -0.003741555322
C108: -0.008012625965
C109: -0.1302256224
C110: 0.03736828355
C111: 0.002434871881
C112: 0.02462991598
C113: 0.04197160724
C114: 0.007639071776
C115: 0.008193852761
C116: 0.03940277988
C117: 0.05038600575
C118: 0.01025304835
C119: 0.01467610272
C120: 0.03210418309
C121: -0.0274728898
C122: -0.03927167679
C123: 0.05804108921
C124: -0.002041571996
C125: 0.08288633095
C126: 0.02926530597
C127: 0.003428779237
C128: 0.02204867811
C129: -0.01587676536
C130: 0.0528830098
C131: -0.008674572119
C132: -0.0109942295
C133: 0.0103619512
C134: 0.01306417403
C135: -0.02466209841
C136: -0.003290640913
C137: -0.05874570502
C138: -0.021045518
C139: 0.001695271533
C140: -0.006699313289
C141: 0.001183046613
C142: 0.06206268663
C143: -0.01385580518
C144: 0.04192347083
C145: 0.006896709909
C146: -0.01447896457
C147: 0.007587014311
C148: -0.04632058401
C149: -0.03704033106
C150: 0.05715668937
C151: -0.0004496139261
C152: 0.005965336961
C153: -0.08229502114
C154: -0.002086167359
C155: 0.0732208819
C156: 0.01965674819
C157: 0.001506905328
C158: -0.05610371403
C159: 0.05867416868
C160: -0.007122163375
C161: 0.02603979663
C162: -0.02941873427
C163: -0.0293113362
C164: 0.0270393913
C165: 0.03430518268
C166: 0.02148742023
C167: 0.01582807208
C168: 0.03954100937
C169: 0.03252479206
C170: -0.002123903554
C171: 0.03475334048
C172: 0.006894646829
C173: 0.02545345723
C174: 0.01597823776
C175: 0.01499291168
C176: 0.02531991145
C177: 0.04946858772
C178: -0.03685172519
C179: -0.01515945036
C180: 0.01037230632
C181: -0.01299258804
C182: -0.02142757826
C183: 0.005529580851
C184: -0.009512365774
C185: -0.01005798631
C186: -0.1020864852
C187: -0.008005811749
C188: -0.06801291835
C189: 0.07686564675
C190: 0.02127129181
C191: -0.002451363587
C192: 0.02646347328
C193: -0.05841570292
C194: 0.03944324755
C195: -0.008094249649
C196: -0.02647131023
C197: 0.02449032116
C198: 0.04344130125
C199: 0.02102692619
C200: 0.04156727895
C201: -0.02991369251
C202: -0.1039931486
C203: -0.1937080074
C204: 0.09730425766
... 47 more rows

Sheet Disaggregation Regress Methods
B17: Random Means
B18: =_xll.apaReturns.Random(5)/100 -> 0.006149169207 | C18: 0.00571349144 | D18: 0.0004763352871 | E18: -0.005429627895 | F18: 0.0008905565739
B21: Random Covars
B22: =_xll.apaCovars.FromVolaCorrs(_xll.apaVolatilities.Random(5),_xll.apaCorrels.Random(5))/100 -> 0.001356244903 | C22: -8.759730769e-05 | D22: 0.000136906465 | E22: 0.001603248784 | F22: 0.0002173307817
B23: -8.759730769e-05 | C23: 0.0006882841015 | D23: -0.0005881648916 | E23: 0.001200057886 | F23: -0.0004346445152
B24: 0.000136906465 | C24: -0.0005881648916 | D24: 0.003068378335 | E24: 8.213966858e-05 | F24: 0.001394934102
B25: 0.001603248784 | C25: 0.001200057886 | D25: 8.213966858e-05 | E25: 0.00893494585 | F25: 0.001654652918
B26: 0.0002173307817 | C26: -0.0004346445152 | D26: 0.001394934102 | E26: 0.001654652918 | F26: 0.001686209029
B29: nObs Lo Freq: | C29: 16
B30: nHiFreqObs In Lo Freq: | C30: 3 | D30: …so quarterly data!
B33: nObs Hi Freq: | C33: =C29*C30 -> 48
B36: Simulated Hi Freq Data | H36: Lo Freq Data from Temporal Aggregation
B37: data series | C37: indicator1 | D37: indicator2 | E37: indicator3 | F37: indicator4 | H37: data series | I37: indicator1 | J37: indicator2 | K37: indicator3 | L37: indicator4 | N37: Diagonal | O37: Chow/Lin | P37: Fernandez | Q37: Litterman | R37: True Monthly | S37: True Quarterly
B38: =_xll.apaNsim.Multivariate(C33,B18:F18,B22:F26) -> 0.03151581138 | C38: 0.04649307716 | D38: -0.00818221568 | E38: 0.1816906504 | F38: 0.006425618205 | H38: =_xll.apaTemporal.Aggregation(B38:B85,C30,1) -> 0.07952139276 | I38: =_xll.apaTemporal.Aggregation(C38:F85,C30,1) -> 0.04719057091 | J38: 0.004678973437 | K38: 0.1948254924 | L38: 0.02586710034 | N38: =_xll.apaTemporal.Disaggregation.Diagonal(_xlfn.ANCHORARRAY(H38),C38:F85,C30,1) -> 0.05398789688 | O38: =_xll.apaTemporal.Disaggregation.ChowLin(_xlfn.ANCHORARRAY(H38),C38:F85,C30,1) -> 0.05528532858 | P38: =_xll.apaTemporal.Disaggregation.Fernandez(_xlfn.ANCHORARRAY(H38),C38:F85,C30,1) -> 0.04033934965 | Q38: =_xll.apaTemporal.Disaggregation.Litterman(_xlfn.ANCHORARRAY(H38),C38:F85,C30,1) -> 0.04012519289 | R38: =B38 -> 0.03151581138 | S38: =_xll.apaMatrix.Replace.Zeros(_xll.apaMatrix.Shift.Circular(MMULT(TRANSPOSE(_xll.apaTemporal.Aggregation.Matrix(16,48,3,1)),H38:H53),0,0),"n/a") -> 0.07952139276
B39: 0.05031117631 | C39: -0.0515011948 | D39: -0.0001126056349 | E39: 0.01474638619 | F39: 0.04889586781 | H39: -0.04102231858 | I39: 0.03389818633 | J39: 0.01445787163 | K39: -0.1632972692 | L39: -0.03938833218 | N39: 0.006542588776 | O39: -0.001844252236 | P39: 0.08439673816 | Q39: 0.08605740438 | R39: 0.05031117631 | S39: 0.07952139276
B40: -0.00230559494 | C40: 0.05219868855 | D40: 0.01297379475 | E40: -0.001611544111 | F40: -0.02945438568 | H40: 0.009120407308 | I40: 0.0901170896 | J40: 0.0130726751 | K40: 0.1031641618 | L40: -0.0002496271956 | N40: 0.0189909071 | O40: 0.02608031642 | P40: -0.04521469506 | Q40: -0.04666120452 | R40: -0.00230559494 | S40: 0.07952139276
B41: -0.02694235649 | C41: 0.03876954542 | D41: -0.02815939504 | E41: -0.03171585983 | F41: -0.03419514226 | H41: 0.003663387176 | I41: 0.1196872252 | J41: 0.09056633843 | K41: 0.2327051185 | L41: 0.03454223373 | N41: -0.0004212551289 | O41: -0.002769445746 | P41: -0.04519614643 | Q41: -0.04630664536 | R41: -0.02694235649 | S41: -0.04102231858
B42: -0.02005562307 | C42: -0.005096949655 | D42: 0.007637628425 | E42: -0.007495298898 | F42: 0.02349520449 | H42: -0.01824072462 | I42: 0.03760620872 | J42: -0.06024342388 | K42: -0.06673950401 | L42: -0.06079833072 | N42: -0.01614842683 | O42: -0.01539856493 | P42: 0.01507552074 | Q42: 0.01625599626 | R42: -0.02005562307 | S42: -0.04102231858
B43: 0.005975660977 | C43: 0.0002255905687 | D43: 0.03497963824 | E43: -0.1240861105 | F43: -0.02868839441 | H43: 0.06720009384 | I43: -0.01619283673 | J43: 0.1201723794 | K43: -0.05862878436 | L43: 0.04183293687 | N43: -0.02445263662 | O43: -0.0228543079 | P43: -0.01090169289 | Q43: -0.01097166948 | R43: 0.005975660977 | S43: -0.04102231858
B44: 0.01151952517 | C44: 0.01465052955 | D44: 0.03801913655 | E44: 0.08938445975 | F44: 0.04096755219 | H44: 0.02623884489 | I44: 0.06415025966 | J44: 0.06340073941 | K44: -0.01257789459 | L44: -0.0700050822 | N44: -0.001623680251 | O44: -0.003947577054 | P44: 0.04215859135 | Q44: 0.04395012049 | R44: 0.01151952517 | S44: 0.009120407308
B45: -0.008943158016 | C45: 0.03979603417 | D45: -0.004551522628 | E45: -0.002684011009 | F45: -0.03744899368 | H45: 0.08337690244 | I45: -0.02197555762 | J45: 0.009012578595 | K45: -0.1132023892 | L45: -0.0136945857 | N45: 0.01047648556 | O45: 0.01126874089 | P45: -0.004666512211 | Q45: -0.005331745849 | R45: -0.008943158016 | S45: 0.009120407308
B46: 0.006544040153 | C46: 0.03567052589 | D46: -0.02039493882 | E46: 0.01646371304 | F46: -0.003768185705 | H46: 0.04863912646 | I46: 0.08732850262 | J46: -0.07202113119 | K46: 0.1347861853 | L46: -0.03667664407 | N46: 0.0002676019971 | O46: 0.001799243476 | P46: -0.02837167183 | Q46: -0.02949796733 | R46: 0.006544040153 | S46: 0.009120407308
B47: -0.008529759716 | C47: 0.03869013269 | D47: 0.0683211514 | E47: 0.05924409277 | F47: 0.01061156831 | H47: -0.05138946768 | I47: 0.03449611672 | J47: -0.09113452146 | K47: -0.07590276351 | L47: -0.02451654467 | N47: -0.00551995069 | O47: -0.006222286597 | P47: 0.008946862811 | Q47: 0.009389249068 | R47: -0.008529759716 | S47: 0.003663387176
B48: 0.0729859747 | C48: 0.03437700274 | D48: 0.038829465 | E48: 0.2068124257 | F48: 0.06147254091 | H48: 0.1608475851 | I48: 0.01305436514 | J48: -0.2107389488 | K48: 0.03468039109 | L48: -0.09559303227 | N48: 0.01199898018 | O48: 0.008442085274 | P48: 0.05559339411 | Q48: 0.05752492355 | R48: 0.0729859747 | S48: 0.003663387176
B49: -0.0607928278 | C49: 0.0466200898 | D49: -0.01658427797 | E49: -0.03335139998 | F49: -0.03754187548 | H49: 0.01595694314 | I49: -0.05017991316 | J49: -0.1898224077 | K49: -0.1625471715 | L49: 0.01462997494 | N49: -0.002815642312 | O49: 0.001443588498 | P49: -0.06087686975 | Q49: -0.06325078544 | R49: -0.0607928278 | S49: 0.003663387176
B50: 0.02366756446 | C50: 0.01006295395 | D50: -0.01593889455 | E50: 0.06438361352 | F50: 0.004888937752 | H50: 0.03009601038 | I50: 0.04594669872 | J50: -0.06541674548 | K50: -0.1807255029 | L50: -0.1214588265 | N50: 0.00528843368 | O50: 0.0049943738 | P50: 0.03701525016 | Q50: 0.03823768243 | R50: 0.02366756446 | S50: -0.01824072462
B51: -0.05532038481 | C51: -0.02123627375 | D51: 0.03359644928 | E51: -0.1855549099 | F51: 0.003213052627 | H51: -0.05302543914 | I51: -0.0380305064 | J51: -0.06332635651 | K51: -0.2573030602 | L51: 0.01360672219 | N51: -0.05960155918 | O51: -0.05161482131 | P51: -0.06690266696 | Q51: -0.06793938656 | R51: -0.05532038481 | S51: -0.01824072462
B52: 0.01341209574 | C52: 0.04877952852 | D52: -0.0779009786 | E52: 0.05443179237 | F52: -0.0689003211 | H52: 0.1132421827 | I52: 0.09467320344 | J52: 0.07212685389 | K52: 0.2749259517 | L52: -0.04126825247 | N52: 0.03607240088 | O52: 0.02837972289 | P52: 0.01164669217 | Q52: 0.01146097951 | R52: 0.01341209574 | S52: -0.01824072462
B53: 0.07971207142 | C53: -0.006416447795 | D53: 0.07149048474 | E53: 0.05478116254 | F53: 0.03728365295 | H53: -0.02730524595 | I53: 0.02515132842 | J53: 0.2138979333 | K53: 0.1210849929 | L53: 0.1602026392 | N53: 0.02926673801 | O53: 0.03408933684 | P53: 0.06432106718 | Q53: 0.06598827489 | R53: 0.07971207142 | S53: 0.06720009384
B54: -0.02460559606 | C54: -0.02148054796 | D54: 0.008198932396 | E54: -0.05826119502 | F54: 0.03787754908 | N54: 0.004754111447 | O54: -0.005100874228 | P54: -0.0111456041 | Q54: -0.01192629527 | R54: -0.02460559606 | S54: 0.06720009384
B55: 0.01209361848 | C55: 0.01170415903 | D55: 0.04048296231 | E55: -0.05514875188 | F55: -0.03332826516 | N55: 0.03317924438 | O55: 0.03821163123 | P55: 0.01402463077 | Q55: 0.01313811423 | R55: 0.01209361848 | S55: 0.06720009384
B56: 0.03198210683 | C56: 0.02862942521 | D56: 0.078516066 | E56: 0.07723690142 | F56: 0.02267827636 | N56: 0.002431290563 | O56: -0.0033086702 | P56: 0.02204469295 | Q56: 0.02330402212 | R56: 0.03198210683 | S56: 0.02623884489
B57: -0.01946415522 | C57: 0.02686607666 | D57: -0.02387034659 | E57: -0.03021460952 | F57: -0.06224782053 | N57: 0.02324141136 | O57: 0.03207024683 | P57: 0.005237184624 | Q57: 0.004519895553 | R57: -0.01946415522 | S57: 0.02623884489
B58: 0.01372089328 | C58: 0.008654757793 | D58: 0.008755020007 | E58: -0.0596001865 | F58: -0.03043553803 | N58: 0.0005661429668 | O58: -0.002522731739 | P58: -0.001043032685 | Q58: -0.001585072784 | R58: 0.01372089328 | S58: 0.02623884489
B59: 0.0455009619 | C59: -0.01340819854 | D59: 0.02933759686 | E59: 0.002271686005 | F59: 0.03659821337 | N59: 0.01731728172 | O59: 0.01933953033 | P59: 0.02810897255 | Q59: 0.02836784987 | R59: 0.0455009619 | S59: 0.08337690244
B60: 0.003773268587 | C60: -0.0344526883 | D60: 0.06992011178 | E60: -0.2141137398 | F60: -0.03011191772 | N60: -0.006279756441 | O60: -0.01209585748 | P60: 0.006397583234 | Q60: 0.005649725983 | R60: 0.003773268587 | S60: 0.08337690244
B61: 0.03410267196 | C61: 0.02588532922 | D61: -0.09024513005 | E61: 0.0986396646 | F61: -0.02018088134 | N61: 0.07233937716 | O61: 0.0761332296 | P61: 0.04887034666 | Q61: 0.04935932659 | R61: 0.03410267196 | S61: 0.08337690244
B62: -0.02675145709 | C62: 0.04545279143 | D62: -0.1047433056 | E62: -0.04863791259 | F62: -0.07850062831 | N62: 0.0259199605 | O62: 0.02250619541 | P62: -0.0391204596 | Q62: -0.04146246974 | R62: -0.02675145709 | S62: 0.04863912646
B63: 0.0767325989 | C63: 0.01935361105 | D63: -0.01647555451 | E63: 0.1253653222 | F63: 0.008826098201 | N63: 0.029366795 | O63: 0.02880398667 | P63: 0.07697071422 | Q63: 0.0788005699 | R63: 0.0767325989 | S63: 0.04863912646
B64: -0.001342015352 | C64: 0.02252210014 | D64: 0.04919772895 | E64: 0.0580587756 | F64: 0.03299788604 | N64: -0.00664762904 | O64: -0.002671055615 | P64: 0.01078887184 | Q64: 0.0113010263 | R64: -0.001342015352 | S64: 0.04863912646
B65: -0.02928419407 | C65: -0.01592189964 | D65: 0.1188993402 | E65: -0.04439876961 | F65: 0.0662319831 | N65: -0.06422588462 | O65: -0.06660288572 | P65: -0.006092155404 | Q65: -0.004402841294 | R65: -0.02928419407 | S65: -0.05138946768
B66: -0.0065278719 | C66: 0.02544549913 | D66: -0.08383015481 | E66: -0.01714739663 | F66: -0.03134702743 | N66: -0.00259873927 | O66: 0.006303638718 | P66: -0.03478743902 | Q66: -0.03572192017 | R66: -0.0065278719 | S66: -0.05138946768
B67: -0.01557740171 | C67: 0.02497251723 | D67: -0.1262037068 | E67: -0.01435659727 | F67: -0.05940150034 | N67: 0.01543515621 | O67: 0.008909779322 | P67: -0.01050987326 | Q67: -0.01126470621 | R67: -0.01557740171 | S67: -0.05138946768
B68: 0.09629384064 | C68: 0.008500987027 | D68: -0.07892684503 | E68: 0.04290689048 | F68: -0.05000223816 | N68: 0.07135200705 | O68: 0.07848533528 | P68: 0.08337969399 | Q68: 0.08390592515 | R68: 0.09629384064 | S68: 0.1608475851
B69: 0.06906723385 | C69: -0.01232971196 | D69: -0.08285146348 | E69: 0.02120320916 | F69: -0.01195381464 | N69: 0.05043723427 | O69: 0.0414997159 | P69: 0.07008107692 | Q69: 0.07068650599 | R69: 0.06906723385 | S69: 0.1608475851
B70: -0.00451348941 | C70: 0.01688309008 | D70: -0.04896064034 | E70: -0.02942970855 | F70: -0.03363697948 | N70: 0.03905834376 | O70: 0.0408625339 | P70: 0.007386814171 | Q70: 0.006255153938 | R70: -0.00451348941 | S70: 0.1608475851
B71: 0.01027564254 | C71: -0.01819213547 | D71: -0.0713473994 | E71: -0.02804565991 | F71: 0.01508233242 | N71: 0.008133548292 | O71: 0.004198538863 | P71: 0.01302932631 | Q71: 0.01328610603 | R71: 0.01027564254 | S71: 0.01595694314
B72: 0.01207034407 | C72: -0.005426702134 | D72: -0.06375826232 | E72: -0.03972010419 | F72: -0.01532283933 | N72: 0.01734735441 | O72: 0.01811632934 | P72: 0.01436600873 | Q72: 0.01426465848 | R72: 0.01207034407 | S72: 0.01595694314
B73: -0.006389043474 | C73: -0.02656107556 | D73: -0.05471674598 | E73: -0.09478140737 | F73: 0.01487048184 | N73: -0.009523959567 | O73: -0.006357925066 | P73: -0.0114383919 | Q73: -0.01159382138 | R73: -0.006389043474 | S73: 0.01595694314
B74: 0.0004625822225 | C74: 0.00379329074 | D74: -0.04020365113 | E74: -0.1141894293 | F74: -0.06256020778 | N74: 0.0101156634 | O74: 0.008525677191 | P74: 0.01185876343 | Q74: 0.01089620959 | R74: 0.0004625822225 | S74: 0.03009601038
B75: -0.001403800912 | C75: 0.04059999534 | D75: -0.08192321284 | E75: -0.02241650141 | F75: -0.05812529899 | N75: 0.02788399632 | O75: 0.03006485545 | P75: -0.01469886315 | Q75: -0.01562466367 | R75: -0.001403800912 | S75: 0.03009601038
B76: 0.03103722907 | C76: 0.001553412638 | D76: 0.0567101185 | E76: -0.04411957223 | F76: -0.0007733196834 | N76: -0.007903649344 | O76: -0.008494522269 | P76: 0.03293611009 | Q76: 0.03482446446 | R76: 0.03103722907 | S76: 0.03009601038
B77: 0.004503782907 | C77: 0.0103167101 | D77: -0.01189281954 | E77: 0.02019195064 | F77: -0.00214798139 | N77: 0.00964759555 | O77: 0.00874186542 | P77: 0.03306232583 | Q77: 0.03518527296 | R77: 0.004503782907 | S77: -0.05302543914
B78: -0.0228951174 | C78: -0.03132345869 | D78: -0.01005370267 | E78: -0.1693820478 | F78: 0.003103144612 | N78: -0.03679726869 | O78: -0.03434724485 | P78: -0.03531462335 | Q78: -0.03566676158 | R78: -0.0228951174 | S78: -0.05302543914
B79: -0.03463410465 | C79: -0.01702375781 | D79: -0.0413798343 | E79: -0.1081129631 | F79: 0.01265155896 | N79: -0.025875766 | O79: -0.02742005971 | P79: -0.05077314163 | Q79: -0.05254395052 | R79: -0.03463410465 | S79: -0.05302543914
B80: 0.09138070558 | C80: 0.06089789414 | D80: -0.037546546 | E80: 0.1468530873 | F80: -0.06808487195 | N80: 0.07862194262 | O80: 0.0814968399 | P80: 0.06215038308 | Q80: 0.06226328338 | R80: 0.09138070558 | S80: 0.1132421827
B81: -0.007833787371 | C81: 0.02415364709 | D81: 0.03172881659 | E81: 0.07751416616 | F81: 0.02463001949 | N81: 0.01510020542 | O81: 0.01360866297 | P81: -0.0007444496664 | Q81: -0.001404196378 | R81: -0.007833787371 | S81: 0.1132421827
B82: 0.02969526446 | C82: 0.009621662211 | D82: 0.0779445833 | E82: 0.05055869829 | F82: 0.002186599984 | N82: 0.01952003463 | O82: 0.0181366798 | P82: 0.05183624925 | Q82: 0.05238309566 | R82: 0.02969526446 | S82: 0.1132421827
B83: 0.04235524464 | C83: -0.01176905836 | D83: 0.09941858464 | E83: 0.03555075419 | F83: 0.05816897024 | N83: -0.01024194416 | O83: -0.01257067923 | P83: 0.03238398461 | Q83: 0.03289615037 | R83: 0.04235524464 | S83: -0.02730524595
B84: -0.06984428349 | C84: 0.01795696636 | D84: 0.04700172079 | E84: -0.04422787086 | F84: 0.02482121911 | N84: -0.01843179326 | O84: -0.01760424855 | P84: -0.06841581453 | Q84: -0.07024261248 | R84: -0.06984428349 | S84: -0.02730524595
B85: 0.0001837929049 | C85: 0.01896342042 | D85: 0.06747762787 | E85: 0.1297621096 | F85: 0.07721244987 | N85: 0.00136849146 | O85: 0.002869681827 | P85: 0.008726583959 | Q85: 0.01004121615 | R85: 0.0001837929049 | S85: -0.02730524595
